Workbook

Sheet CurrencyPairs
A1: Input Data | L1: Output Data
A2: Currency | B2: Bought/ Sold | C2: Order-ID | D2: Trade Date | E2: Value Date | F2: Position Size/ Amount | G2: Price | H2: Conversion Rate | I2: Traded Value | J2: Traded Value in EUR | L2: Currency | M2: Long/Short | N2: Position Size/ Amount | O2: Traded Value in EUR
A3: EURGBP | B3: Sold | C3: 1 | D3: 2011-01-14 | E3: 2011-01-17 | F3: 26100 | G3: 0.8933772 | H3: 1.17137265 | I3: =G3*F3 -> 23317.14492 | J3: =H3*I3 -> 27313.06584 | L3: EURGBP | M3: Enter short | N3: 26100 | O3: 27313.06584
A4: EURCHF | B4: Sold | C4: 2 | D4: 2011-01-14 | E4: 2011-01-17 | F4: 26100 | G4: 1.4620986 | H4: 0.72345243 | I4: =G4*F4 -> 38160.77346 | J4: =H4*I4 -> 27607.50429 | L4: EURCHF | M4: Enter short | N4: 26100 | O4: 27607.50429
A5: EURGBP | B5: Bought | C5: 3 | D5: 2011-01-14 | E5: 2011-01-17 | F5: 26100 | G5: 0.8931018 | H5: 1.17045492 | I5: 23309.95698 | J5: 27283.25383 | L5: EURGBP | M5: Exit short - flat | N5: 0 | O5: 0
A6: EURGBP | B6: Sold | C6: 4 | D6: 2011-01-14 | E6: 2011-01-17 | F6: 26100 | G6: 0.8933772 | H6: 1.17137265 | I6: 23317.14492 | J6: 27313.06584 | L6: EURGBP | M6: Enter short | N6: 26100 | O6: 27313.06584
A7: EURCHF | B7: Bought | C7: 5 | D7: 2011-01-14 | E7: 2011-01-17 | F7: 26100 | G7: 1.4618946 | H7: 0.71429161 | I7: 38155.44906 | J7: 27254.11714 | L7: EURCHF | M7: Exit short - flat | N7: 0 | O7: 0
A8: EURGBP | B8: Bought | C8: 6 | D8: 2011-01-14 | E8: 2011-01-17 | F8: 26100 | G8: 0.8931528 | H8: 1.16996567 | I8: 23311.28808 | J8: 27273.40678 | L8: EURGBP | M8: Exit short - flat | N8: 0 | O8: 0
A9: EURGBP | B9: Sold | C9: 7 | D9: 2011-01-14 | E9: 2011-01-17 | F9: 26100 | G9: 0.8933772 | H9: 1.17137265 | I9: 23317.14492 | J9: 27313.06584 | L9: EURGBP | M9: Enter short | N9: 26100 | O9: 27313.06584
A10: EURCHF | B10: Bought | C10: 8 | D10: 2011-01-14 | E10: 2011-01-17 | F10: 26100 | G10: 1.4617416 | H10: 0.72345243 | I10: 38151.45576 | J10: 27600.76338 | L10: EURCHF | M10: Enter long | N10: 26100 | O10: 27600.76338
A11: EURCHF | B11: Sold | C11: 9 | D11: 2011-01-14 | E11: 2011-01-17 | F11: 26100 | G11: 1.4620986 | H11: 0.71446362 | I11: 38160.77346 | J11: 27264.48435 | L11: EURCHF | M11: Exit long - flat | N11: 0 | O11: 0
A12: EURGBP | B12: Bought | C12: 10 | D12: 2011-01-14 | E12: 2011-01-17 | F12: 26100 | G12: 0.8931528 | H12: 1.16996567 | I12: 23311.28808 | J12: 27273.40678 | L12: EURGBP | M12: Exit short - flat | N12: 0 | O12: 0
A13: EURGBP | B13: Sold | C13: 11 | D13: 2011-01-14 | E13: 2011-01-17 | F13: 26100 | G13: 0.8933772 | H13: 1.17137265 | I13: 23317.14492 | J13: 27313.06584 | L13: EURGBP | M13: Enter short | N13: 26100 | O13: 27313.06584
A14: EURCHF | B14: Bought | C14: 12 | D14: 2011-01-14 | E14: 2011-01-17 | F14: 26100 | G14: 1.4618436 | H14: 0.72345243 | I14: 38154.11796 | J14: 27602.68935 | L14: EURCHF | M14: Enter long | N14: 26100 | O14: 27602.68935
A15: EURGBP | B15: Bought | C15: 13 | D15: 2011-01-14 | E15: 2011-01-17 | F15: 26100 | G15: 0.8932038 | H15: 1.1738292 | I15: 23312.61918 | J15: 27365.03312 | L15: EURGBP | M15: Exit short - flat | N15: 0 | O15: 0
A16: EURGBP | B16: Bought | C16: 14 | D16: 2011-01-14 | E16: 2011-01-17 | F16: 26100 | G16: 0.8931528 | H16: 1.17137265 | I16: 23311.28808 | J16: 27306.20529 | L16: EURGBP | M16: Enter long | N16: 26100 | O16: 27306.20529
A17: EURCHF | B17: Bought | C17: 15 | D17: 2011-01-14 | E17: 2011-01-17 | F17: 26100 | G17: 1.4616396 | H17: 0.72345243 | I17: 38148.79356 | J17: 27598.8374 | L17: EURCHF | M17: Enter long | N17: 52200 | O17: 55201.52676
A18: EURGBP | B18: Sold | C18: 16 | D18: 2011-01-14 | E18: 2011-01-17 | F18: 26100 | G18: 0.8933262 | H18: 1.1740558 | I18: 23315.81382 | J18: 27374.06645 | L18: EURGBP | M18: Exit long - flat | N18: 0 | O18: 0
A19: EURCHF | B19: Sold | C19: 17 | D19: 2011-01-14 | E19: 2011-01-17 | F19: 26100 | G19: 1.4618436 | H19: 0.71241701 | I19: 38154.11796 | J19: 27181.64264 | L19: EURCHF | M19: Exit long | N19: 26100 | O19: 28019.88412
A20: EURCHF | B20: Sold | C20: 18 | D20: 2011-01-14 | E20: 2011-01-17 | F20: 26100 | G20: 1.4618436 | H20: 0.73571458 | I20: 38154.11796 | J20: 28070.54087 | L20: EURCHF | M20: Exit long - flat | N20: 0 | O20: 0
A21: EURGBP | B21: Bought | C21: 19 | D21: 2011-01-14 | E21: 2011-01-17 | F21: 26100 | G21: 0.8928468 | H21: 1.17137265 | I21: 23303.30148 | J21: 27296.85001 | L21: EURGBP | M21: Enter long | N21: 26100 | O21: 27296.85001
A22: EURGBP | B22: Sold | C22: 20 | D22: 2011-01-14 | E22: 2011-01-17 | F22: 26100 | G22: 0.8932242 | H22: 1.17074538 | I22: 23313.15162 | J22: 27293.76455 | L22: EURGBP | M22: Exit long - flat | N22: 0 | O22: 0
A23: EURCHF | B23: Bought | C23: 21 | D23: 2011-01-14 | E23: 2011-01-17 | F23: 52200 | G23: 1.4613336 | H23: 0.72345243 | I23: 76281.61392 | J23: 55186.11895 | L23: EURCHF | M23: Enter long | N23: 52200 | O23: 55186.11895
A24: EURGBP | B24: Bought | C24: 22 | D24: 2011-01-14 | E24: 2011-01-17 | F24: 15660 | G24: 0.8928978 | H24: 1.16290296 | I24: 13982.77955 | J24: 16260.61573 | L24: EURGBP | M24: Enter long | N24: 15660 | O24: 16260.61573
A25: EURGBP | B25: Sold | C25: 23 | D25: 2011-01-14 | E25: 2011-01-17 | F25: 15660 | G25: 0.8931222 | H25: 1.17288984 | I25: 13986.29365 | J25: 16404.38172 | L25: EURGBP | M25: Exit long - flat | N25: 0 | O25: 0
A26: EURCHF | B26: Sold | C26: 24 | D26: 2011-01-14 | E26: 2011-01-17 | F26: 52200 | G26: 1.4613846 | H26: 0.721 | I26: 76284.27612 | J26: 55000.96308 | L26: EURCHF | M26: Exit long - flat | N26: 0 | O26: 0
A27: EURCHF | B27: Sold | C27: 25 | D27: 2011-01-14 | E27: 2011-01-17 | F27: 15660 | G27: 1.462272 | H27: 0.721 | I27: 22899.17952 | J27: 16510.30843 | L27: EURCHF | M27: Enter short | N27: 15660 | O27: 16510.30843
A28: EURGBP | B28: Bought | C28: 26 | D28: 2011-01-14 | E28: 2011-01-17 | F28: 10440 | G28: 0.891684 | H28: 1.17714271 | I28: 9309.18096 | J28: 10958.2345 | L28: EURGBP | M28: Enter long | N28: 10440 | O28: 10958.2345
A29: EURCHF | B29: Bought | C29: 27 | D29: 2011-01-14 | E29: 2011-01-17 | F29: 15660 | G29: 1.462068 | H29: 0.71509604 | I29: 22895.98488 | J29: 16372.82812 | L29: EURCHF | M29: Exit short - flat | N29: 0 | O29: 0
A30: EURCHF | B30: Sold | C30: 28 | D30: 2011-01-14 | E30: 2011-01-17 | F30: 15660 | G30: 1.462272 | H30: 0.721 | I30: 22899.17952 | J30: 16510.30843 | L30: EURCHF | M30: Enter short | N30: 15660 | O30: 16510.30843
A31: EURCHF | B31: Sold | C31: 29 | D31: 2011-01-14 | E31: 2011-01-17 | F31: 10440 | G31: 1.462272 | H31: 0.72345243 | I31: 15266.11968 | J31: 11044.31138 | L31: EURCHF | M31: Enter short | N31: 26100 | O31: 27554.61981
A32: EURCHF | B32: Sold | C32: 30 | D32: 2011-01-14 | E32: 2011-01-17 | F32: 15660 | G32: 1.462272 | H32: 0.72345243 | I32: 22899.17952 | J32: 16566.46707 | L32: EURCHF | M32: Enter short | N32: 41760 | O32: 44121.08688
A33: EURGBP | B33: Sold | C33: 31 | D33: 2011-01-14 | E33: 2011-01-17 | F33: 10440 | G33: 0.891786 | H33: 1.18547129 | I33: 9310.24584 | J33: 11037.02915 | L33: EURGBP | M33: Exit long - flat | N33: 0 | O33: 0
A34: EURCHF | B34: Bought | C34: 32 | D34: 2011-01-14 | E34: 2011-01-17 | F34: 15660 | G34: 1.462119 | H34: 0.71576245 | I34: 22896.78354 | J34: 16388.65788 | L34: EURCHF | M34: Exit short | N34: 26100 | O34: 27732.429
A35: EURCHF | B35: Bought | C35: 33 | D35: 2011-01-14 | E35: 2011-01-17 | F35: 10440 | G35: 1.462119 | H35: 0.71307724 | I35: 15264.52236 | J35: 10884.78347 | L35: EURCHF | M35: Exit short | N35: 15660 | O35: 16847.64552
A36: EURCHF | B36: Bought | C36: 34 | D36: 2011-01-14 | E36: 2011-01-17 | F36: 15660 | G36: 1.462068 | H36: 0.71509604 | I36: 22895.98488 | J36: 16372.82812 | L36: EURCHF | M36: Exit short - flat | N36: 0 | O36: 0
A37: EURGBP | B37: Sold | C37: 35 | D37: 2011-01-14 | E37: 2011-01-17 | F37: 10440 | G37: 0.891837 | H37: 1.17714271 | I37: 9310.77828 | J37: 10960.11478 | L37: EURGBP | M37: Enter short | N37: 10440 | O37: 10960.11478
A38: EURCHF | B38: Sold | C38: 36 | D38: 2011-01-14 | E38: 2011-01-17 | F38: 26100 | G38: 1.462221 | H38: 0.72345243 | I38: 38163.9681 | J38: 27609.81546 | L38: EURCHF | M38: Enter short | N38: 26100 | O38: 27609.81546
A39: GBPUSD | B39: Sold | C39: 37 | D39: 2011-01-14 | E39: 2011-01-17 | F39: 5220 | G39: 1.558152 | H39: 0.7725 | I39: 8133.55344 | J39: 6283.170032 | L39: GBPUSD | M39: Enter short | N39: 5220 | O39: 6283.170032
A40: EURCHF | B40: Bought | C40: 38 | D40: 2011-01-14 | E40: 2011-01-17 | F40: 26100 | G40: 1.462017 | H40: 0.70966485 | I40: 38158.6437 | J40: 27079.84816 | L40: EURCHF | M40: Exit short - flat | N40: 0 | O40: 0
A41: EURCHF | B41: Sold | C41: 39 | D41: 2011-01-14 | E41: 2011-01-17 | F41: 52200 | G41: 1.462272 | H41: 0.72345243 | I41: 76330.5984 | J41: 55221.5569 | L41: EURCHF | M41: Enter short | N41: 52200 | O41: 55221.5569
A42: EURCHF | B42: Bought | C42: 40 | D42: 2011-01-14 | E42: 2011-01-17 | F42: 52200 | G42: 1.462068 | H42: 0.71231813 | I42: 76319.9496 | J42: 54364.08378 | L42: EURCHF | M42: Exit short - flat | N42: 0 | O42: 0
A43: EURCHF | B43: Sold | C43: 41 | D43: 2011-01-14 | E43: 2011-01-17 | F43: 52200 | G43: 1.462272 | H43: 0.72345243 | I43: 76330.5984 | J43: 55221.5569 | L43: EURCHF | M43: Enter short | N43: 52200 | O43: 55221.5569
A44: EURCHF | B44: Bought | C44: 42 | D44: 2011-01-14 | E44: 2011-01-17 | F44: 52200 | G44: 1.462119 | H44: 0.71206681 | I44: 76322.6118 | J44: 54346.79872 | L44: EURCHF | M44: Exit short - flat | N44: 0 | O44: 0
A45: EURGBP | B45: Bought | C45: 43 | D45: 2011-01-14 | E45: 2011-01-17 | F45: 10440 | G45: 0.891837 | H45: 1.2875 | I45: 9310.77828 | J45: 11987.62704 | L45: EURGBP | M45: Exit short - flat | N45: 0 | O45: 0
A46: EURCHF | B46: Sold | C46: 44 | D46: 2011-01-14 | E46: 2011-01-17 | F46: 13050 | G46: 1.462272 | H46: 0.71119028 | I46: 19082.6496 | J46: 13571.39491 | L46: EURCHF | M46: Enter short | N46: 13050 | O46: 13571.39491
A47: GBPUSD | B47: Bought | C47: 45 | D47: 2011-01-14 | E47: 2011-01-17 | F47: 5220 | G47: 1.55856 | H47: 0.76566389 | I47: 8135.6832 | J47: 6229.198847 | L47: GBPUSD | M47: Exit short - flat | N47: 0 | O47: 0
A48: EURCHF | B48: Bought | C48: 46 | D48: 2011-01-14 | E48: 2011-01-17 | F48: 13050 | G48: 1.462629 | H48: 0.71828904 | I48: 19087.30845 | J48: 13710.20446 | L48: EURCHF | M48: Exit short - flat | N48: 0 | O48: 0
A49: EURGBP | B49: Sold | C49: 47 | D49: 2011-01-14 | E49: 2011-01-17 | F49: 10440 | G49: 0.8945502 | H49: 1.1845 | I49: 9339.104088 | J49: 11062.16879 | L49: EURGBP | M49: Enter short | N49: 10440 | O49: 11062.16879
A50: EURCHF | B50: Sold | C50: 48 | D50: 2011-01-14 | E50: 2011-01-17 | F50: 15660 | G50: 1.46727 | H50: 0.721 | I50: 22977.4482 | J50: 16566.74015 | L50: EURCHF | M50: Enter short | N50: 15660 | O50: 16566.74015
A51: EURCHF | B51: Bought | C51: 49 | D51: 2011-01-14 | E51: 2011-01-17 | F51: 15660 | G51: 1.46778 | H51: 0.72004622 | I51: 22985.4348 | J51: 16550.57544 | L51: EURCHF | M51: Exit short - flat | N51: 0 | O51: 0
A52: EURGBP | B52: Bought | C52: 50 | D52: 2011-01-14 | E52: 2011-01-17 | F52: 10440 | G52: 0.9009048 | H52: 1.17023965 | I52: 9405.446112 | J52: 11006.62597 | L52: EURGBP | M52: Exit short - flat | N52: 0 | O52: 0
A53: EURCHF | B53: Sold | C53: 51 | D53: 2011-01-14 | E53: 2011-01-17 | F53: 13050 | G53: 1.468341 | H53: 0.70341481 | I53: 19161.85005 | J53: 13478.72911 | L53: EURCHF | M53: Enter short | N53: 13050 | O53: 13478.72911
A54: EURGBP | B54: Sold | C54: 52 | D54: 2011-01-14 | E54: 2011-01-17 | F54: 13050 | G54: 0.90168 | H54: 1.1536 | I54: 11766.924 | J54: 13574.32353 | L54: EURGBP | M54: Enter short | N54: 13050 | O54: 13574.32353
A55: EURCHF | B55: Sold | C55: 53 | D55: 2011-01-14 | E55: 2011-01-17 | F55: 13050 | G55: 1.4688 | H55: 0.71119028 | I55: 19167.84 | J55: 13631.9815 | L55: EURCHF | M55: Enter short | N55: 26100 | O55: 27110.71061
A56: EURGBP | B56: Bought | C56: 54 | D56: 2011-01-14 | E56: 2011-01-17 | F56: 13050 | G56: 0.901374 | H56: 1.16137753 | I56: 11762.9307 | J56: 13661.2034 | L56: EURGBP | M56: Exit short - flat | N56: 0 | O56: 0
A57: EURGBP | B57: Sold | C57: 55 | D57: 2011-01-14 | E57: 2011-01-17 | F57: 26100 | G57: 0.901833 | H57: 1.17137265 | I57: 23537.8413 | J57: 27571.58354 | L57: EURGBP | M57: Enter short | N57: 26100 | O57: 27571.58354
A58: EURCHF | B58: Bought | C58: 56 | D58: 2011-01-14 | E58: 2011-01-17 | F58: 13050 | G58: 1.468392 | H58: 0.7178791 | I58: 19162.5156 | J58: 13756.36945 | L58: EURCHF | M58: Exit short | N58: 13050 | O58: 13354.34116
A59: EURCHF | B59: Bought | C59: 57 | D59: 2011-01-14 | E59: 2011-01-17 | F59: 13050 | G59: 1.468392 | H59: 0.71034465 | I59: 19162.5156 | J59: 13611.99044 | L59: EURCHF | M59: Exit short - flat | N59: 0 | O59: 0
A60: EURCHF | B60: Bought | C60: 58 | D60: 2011-01-14 | E60: 2011-01-17 | F60: 52200 | G60: 1.468188 | H60: 0.71975885 | I60: 76639.4136 | J60: 55161.8962 | L60: EURCHF | M60: Enter long | N60: 52200 | O60: 55161.8962
A61: EURGBP | B61: Bought | C61: 59 | D61: 2011-01-14 | E61: 2011-01-17 | F61: 26100 | G61: 0.901476 | H61: 1.15846778 | I61: 23528.5236 | J61: 27257.0365 | L61: EURGBP | M61: Exit short - flat | N61: 0 | O61: 0
A62: EURCHF | B62: Sold | C62: 60 | D62: 2011-01-14 | E62: 2011-01-17 | F62: 52200 | G62: 1.4685348 | H62: 0.71182682 | I62: 76657.51656 | J62: 54566.87624 | L62: EURCHF | M62: Exit long - flat | N62: 0 | O62: 0
A63: EURGBP | B63: Sold | C63: 61 | D63: 2011-01-14 | E63: 2011-01-17 | F63: 26100 | G63: 0.901782 | H63: 1.17137265 | I63: 23536.5102 | J63: 27570.02432 | L63: EURGBP | M63: Enter short | N63: 26100 | O63: 27570.02432
A64: EURCHF | B64: Sold | C64: 68 | D64: 2011-01-14 | E64: 2011-01-17 | F64: 52200 | G64: 1.4688 | H64: 0.72596357 | I64: =G64*F64 -> 76671.36 | J64: =H64*I64 -> 55660.61422 | L64: EURCHF | M64: Enter short | N64: 52200 | O64: 55660.61422
A65: EURGBP | B65: Sold | C65: 69 | D65: 2011-01-14 | E65: 2011-01-17 | F65: 13050 | G65: 0.902241 | H65: 1.1536 | I65: 11774.24505 | J65: 13582.76909 | L65: EURGBP | M65: Enter short | N65: 39150 | O65: 41152.79341
A66: EURGBP | B66: Bought | C66: 70 | D66: 2011-01-14 | E66: 2011-01-17 | F66: 26100 | G66: 0.901986 | H66: 1.17010987 | I66: 23541.8346 | J66: 27546.53302 | L66: EURGBP | M66: Exit short | N66: 13050 | O66: 13606.26039
A67: EURGBP | B67: Bought | C67: 71 | D67: 2011-01-14 | E67: 2011-01-17 | F67: 13050 | G67: 0.901986 | H67: 1.15637997 | I67: 11770.9173 | J67: 13611.65299 | L67: EURGBP | M67: Exit short - flat | N67: 0 | O67: 0
A68: EURCHF | B68: Bought | C68: 72 | D68: 2011-01-14 | E68: 2011-01-17 | F68: 52200 | G68: 1.468647 | H68: 0.71469434 | I68: 76663.3734 | J68: 54790.87905 | L68: EURCHF | M68: Exit short - flat | N68: 0 | O68: 0
A69: EURGBP | B69: Sold | C69: 73 | D69: 2011-01-14 | E69: 2011-01-17 | F69: 5220 | G69: 0.901884 | H69: 1.133 | I69: 4707.83448 | J69: 5333.976466 | L69: EURGBP | M69: Enter short | N69: 5220 | O69: 5333.976466
A70: EURCHF | B70: Sold | C70: 74 | D70: 2011-01-14 | E70: 2011-01-17 | F70: 15660 | G70: 1.46217 | H70: 0.721 | I70: 22897.5822 | J70: 16509.15677 | L70: EURCHF | M70: Enter short | N70: 15660 | O70: 16509.15677
A71: EURCHF | B71: Sold | C71: 75 | D71: 2011-01-14 | E71: 2011-01-17 | F71: 15660 | G71: 1.462782 | H71: 0.721 | I71: 22907.16612 | J71: 16516.06677 | L71: EURCHF | M71: Enter short | N71: 31320 | O71: 33025.22354
A72: EURGBP | B72: Sold | C72: 76 | D72: 2011-01-14 | E72: 2011-01-17 | F72: 5220 | G72: 0.90219 | H72: 1.133 | I72: 4709.4318 | J72: 5335.786229 | L72: EURGBP | M72: Enter short | N72: 10440 | O72: 10669.7627
A73: EURGBP | B73: Bought | C73: 77 | D73: 2011-01-14 | E73: 2011-01-17 | F73: 5220 | G73: 0.901935 | H73: 1.18846138 | I73: 4708.1007 | J73: 5595.395855 | L73: EURGBP | M73: Exit short | N73: 5220 | O73: 5074.36684
A74: EURGBP | B74: Bought | C74: 78 | D74: 2011-01-14 | E74: 2011-01-17 | F74: 5220 | G74: 0.901935 | H74: 1.15676931 | I74: 4708.1007 | J74: 5446.186398 | L74: EURGBP | M74: Exit short - flat | N74: 0 | O74: 0
A75: EURGBP | B75: Sold | C75: 79 | D75: 2011-01-14 | E75: 2011-01-17 | F75: 26100 | G75: 0.90219 | H75: 1.17137265 | I75: 23547.159 | J75: 27582.49804 | L75: EURGBP | M75: Enter short | N75: 26100 | O75: 27582.49804
A76: EURGBP | B76: Bought | C76: 80 | D76: 2011-01-14 | E76: 2011-01-17 | F76: 26100 | G76: 0.901935 | H76: 1.15637997 | I76: 23540.5035 | J76: 27221.76673 | L76: EURGBP | M76: Exit short - flat | N76: 0 | O76: 0
A77: GBPUSD | B77: Sold | C77: 81 | D77: 2011-01-14 | E77: 2011-01-17 | F77: 5220 | G77: 1.568352 | H77: 0.7725 | I77: 8186.79744 | J77: 6324.301022 | L77: GBPUSD | M77: Enter short | N77: 5220 | O77: 6324.301022
A78: EURGBP | B78: Sold | C78: 82 | D78: 2011-01-14 | E78: 2011-01-17 | F78: 52200 | G78: 0.90219 | H78: 1.17137265 | I78: 47094.318 | J78: 55164.99608 | L78: EURGBP | M78: Enter short | N78: 52200 | O78: 55164.99608
A79: USDCHF | B79: Bought | C79: 83 | D79: 2011-01-14 | E79: 2011-01-17 | F79: 5220 | G79: 1.0757022 | H79: 0.72705846 | I79: 5615.165484 | J79: 4082.553569 | L79: USDCHF | M79: Enter long | N79: 5220 | O79: 4082.553569
A80: EURCHF | B80: Sold | C80: 84 | D80: 2011-01-14 | E80: 2011-01-17 | F80: 26100 | G80: 1.462884 | H80: 0.71975885 | I80: 38181.2724 | J80: 27481.30871 | L80: EURCHF | M80: Enter short | N80: 57420 | O80: 60506.53225
A81: EURCHF | B81: Sold | C81: 85 | D81: 2011-01-14 | E81: 2011-01-17 | F81: 26100 | G81: 1.463088 | H81: 0.71975885 | I81: 38186.5968 | J81: 27485.141 | L81: EURCHF | M81: Enter short | N81: 83520 | O81: 87991.67325
A82: EURCAD | B82: Sold | C82: 86 | D82: 2011-01-14 | E82: 2011-01-17 | F82: 10440 | G82: 1.390464 | H82: 0.76419305 | I82: 14516.44416 | J82: 11093.36574 | L82: EURCAD | M82: Enter short | N82: 10440 | O82: 11093.36574
A83: EURCHF | B83: Sold | C83: 87 | D83: 2011-01-14 | E83: 2011-01-17 | F83: 26100 | G83: 1.4637 | H83: 0.7241209 | I83: 38202.57 | J83: 27663.27937 | L83: EURCHF | M83: Enter short | N83: 109620 | O83: 115654.9526
A84: EURCHF | B84: Sold | C84: 88 | D84: 2011-01-14 | E84: 2011-01-17 | F84: 26100 | G84: 1.4637 | H84: 0.7241209 | I84: 38202.57 | J84: 27663.27937 | L84: EURCHF | M84: Enter short | N84: 135720 | O84: 143318.232
A85: EURCHF | B85: Bought | C85: 89 | D85: 2011-01-14 | E85: 2011-01-17 | F85: 15660 | G85: 1.46319 | H85: 0.72074765 | I85: 22913.5554 | J85: 16514.89121 | L85: EURCHF | M85: Exit short | N85: 120060 | O85: 126803.3408
A86: EURCHF | B86: Bought | C86: 90 | D86: 2011-01-14 | E86: 2011-01-17 | F86: 15660 | G86: 1.46319 | H86: 0.72040466 | I86: 22913.5554 | J86: 16507.03209 | L86: EURCHF | M86: Exit short | N86: 104400 | O86: 110296.3087
A87: EURCHF | B87: Bought | C87: 91 | D87: 2011-01-14 | E87: 2011-01-17 | F87: 20880 | G87: 1.46319 | H87: 0.72042114 | I87: 30551.4072 | J87: 22009.8796 | L87: EURCHF | M87: Exit short | N87: 83520 | O87: 88286.42909
A88: EURCHF | B88: Bought | C88: 92 | D88: 2011-01-14 | E88: 2011-01-17 | F88: 5220 | G88: 1.46319 | H88: 0.71752787 | I88: 7637.8518 | J88: 5480.371533 | L88: EURCHF | M88: Exit short | N88: 78300 | O88: 82806.05756
A89: EURCHF | B89: Bought | C89: 93 | D89: 2011-01-14 | E89: 2011-01-17 | F89: 26100 | G89: 1.46319 | H89: 0.72378409 | I89: 38189.259 | J89: 27640.77807 | L89: EURCHF | M89: Exit short | N89: 52200 | O89: 55165.27949
A90: EURCHF | B90: Bought | C90: 94 | D90: 2011-01-14 | E90: 2011-01-17 | F90: 26100 | G90: 1.46319 | H90: 0.71404956 | I90: 38189.259 | J90: 27269.02359 | L90: EURCHF | M90: Exit short | N90: 26100 | O90: 27896.2559
A91: EURCHF | B91: Sold | C91: 95 | D91: 2011-01-14 | E91: 2011-01-17 | F91: 52200 | G91: 1.4637 | H91: 0.7222566 | I91: 76405.14 | J91: 55184.11664 | L91: EURCHF | M91: Enter short | N91: 78300 | O91: 83080.37254
A92: EURCHF | B92: Sold | C92: 96 | D92: 2011-01-14 | E92: 2011-01-17 | F92: 26100 | G92: 1.463751 | H92: 0.71597566 | I92: 38203.9011 | J92: 27353.0633 | L92: EURCHF | M92: Enter short | N92: 104400 | O92: 110433.4358
A93: GBPUSD | B93: Bought | C93: 97 | D93: 2011-01-14 | E93: 2011-01-17 | F93: 5220 | G93: 1.5687192 | H93: 0.74999965 | I93: 8188.714224 | J93: 6141.532802 | L93: GBPUSD | M93: Exit short - flat | N93: 0 | O93: 0
A94: USDCHF | B94: Sold | C94: 98 | D94: 2011-01-14 | E94: 2011-01-17 | F94: 5220 | G94: 1.0752432 | H94: 0.71576245 | I94: 5612.769504 | J94: 4017.409651 | L94: USDCHF | M94: Exit long - flat | N94: 0 | O94: 0
A95: EURCAD | B95: Bought | C95: 99 | D95: 2011-01-14 | E95: 2011-01-17 | F95: 10440 | G95: 1.390515 | H95: 0.75894726 | I95: 14516.9766 | J95: 11017.61961 | L95: EURCAD | M95: Exit short - flat | N95: 0 | O95: 0
A96: EURGBP | B96: Bought | C96: 100 | D96: 2011-01-14 | E96: 2011-01-17 | F96: 52200 | G96: 0.902649 | H96: 1.17260247 | I96: 47118.2778 | J96: 55251.00893 | L96: EURGBP | M96: Exit short - flat | N96: 0 | O96: 0
A97: EURCHF | B97: Bought | C97: 101 | D97: 2011-01-14 | E97: 2011-01-17 | F97: 26100 | G97: 1.463751 | H97: 0.71307724 | I97: 38203.9011 | J97: 27242.33235 | L97: EURCHF | M97: Exit short | N97: 78300 | O97: 83191.10349
A98: EURCHF | B98: Bought | C98: 102 | D98: 2011-01-14 | E98: 2011-01-17 | F98: 52200 | G98: 1.463751 | H98: 0.721 | I98: 76407.8022 | J98: 55090.02539 | L98: EURCHF | M98: Exit short | N98: 26100 | O98: 28101.07811
A99: EURCHF | B99: Bought | C99: 103 | D99: 2011-01-14 | E99: 2011-01-17 | F99: 26100 | G99: 1.463751 | H99: 0.71597566 | I99: 38203.9011 | J99: 27353.0633 | L99: EURCHF | M99: Exit short - flat | N99: 0 | O99: 0
A100: EURCHF | B100: Sold | C100: 108 | D100: 2011-01-14 | E100: 2011-01-17 | F100: 24500 | G100: 1.465128 | H100: 0.72233797 | I100: 35895.636 | J100: 25928.78084 | L100: EURCHF | M100: Enter short | N100: 24500 | O100: 25928.78084
A101: EURCHF | B101: Bought | C101: 109 | D101: 2011-01-14 | E101: 2011-01-17 | F101: 24500 | G101: 1.464822 | H101: 0.71372305 | I101: 35888.139 | J101: 25614.19203 | L101: EURCHF | M101: Exit short - flat | N101: 0 | O101: 0
A102: EURCHF | B102: Bought | C102: 110 | D102: 2011-01-14 | E102: 2011-01-17 | F102: 24500 | G102: 1.464771 | H102: 0.72233797 | I102: 35886.8895 | J102: 25922.46291 | L102: EURCHF | M102: Enter long | N102: 24500 | O102: 25922.46291
A103: EURCHF | B103: Bought | C103: 111 | D103: 2011-01-14 | E103: 2011-01-17 | F103: 24500 | G103: 1.46472 | H103: 0.72233797 | I103: 35885.64 | J103: 25921.56035 | L103: EURCHF | M103: Enter long | N103: 49000 | O103: 51844.02326
A104: EURCHF | B104: Sold | C104: 112 | D104: 2011-01-14 | E104: 2011-01-17 | F104: 24500 | G104: 1.464924 | H104: 0.71092351 | I104: 35890.638 | J104: 25515.49834 | L104: EURCHF | M104: Exit long | N104: 24500 | O104: 26328.52492
A105: GBPUSD | B105: Bought | C105: 113 | D105: 2011-01-14 | E105: 2011-01-17 | F105: 4900 | G105: 1.577532 | H105: 0.75533299 | I105: 7729.9068 | J105: 5838.653616 | L105: GBPUSD | M105: Enter long | N105: 4900 | O105: 5838.653616
A106: EURCHF | B106: Sold | C106: 114 | D106: 2011-01-14 | E106: 2011-01-17 | F106: 24500 | G106: 1.465128 | H106: 0.72233797 | I106: 35895.636 | J106: 25928.78084 | L106: EURCHF | M106: Exit long - flat | N106: 0 | O106: 0
A107: EURCHF | B107: Sold | C107: 115 | D107: 2011-01-14 | E107: 2011-01-17 | F107: 24500 | G107: 1.465077 | H107: 0.71448113 | I107: 35894.3865 | J107: 25645.86183 | L107: EURCHF | M107: Enter short | N107: 24500 | O107: 25645.86183
A108: EURCHF | B108: Bought | C108: 116 | D108: 2011-01-14 | E108: 2011-01-17 | F108: 24500 | G108: 1.464822 | H108: 0.71652156 | I108: 35888.139 | J108: 25714.62534 | L108: EURCHF | M108: Exit short - flat | N108: 0 | O108: 0
A109: GBPUSD | B109: Sold | C109: 117 | D109: 2011-01-14 | E109: 2011-01-17 | F109: 4900 | G109: 1.577736 | H109: 0.75673482 | I109: 7730.9064 | J109: 5850.246063 | L109: GBPUSD | M109: Exit long - flat | N109: 0 | O109: 0
A110: EURCHF | B110: Bought | C110: 124 | D110: 2011-01-14 | E110: 2011-01-17 | F110: 49000 | G110: 1.464822 | H110: 0.72432278 | I110: 71776.278 | J110: 51989.19322 | L110: EURCHF | M110: Enter long | N110: 49000 | O110: 51989.19322
A111: EURCHF | B111: Bought | C111: 125 | D111: 2011-01-14 | E111: 2011-01-17 | F111: 49000 | G111: 1.464771 | H111: 0.72432278 | I111: 71773.779 | J111: 51987.38314 | L111: EURCHF | M111: Enter long | N111: 98000 | O111: 103976.5764
A112: EURCHF | B112: Sold | C112: 126 | D112: 2011-01-14 | E112: 2011-01-17 | F112: 49000 | G112: 1.465026 | H112: 0.71469434 | I112: 71786.274 | J112: 51305.24372 | L112: EURCHF | M112: Exit long | N112: 49000 | O112: 52671.33264
A113: EURCHF | B113: Sold | C113: 127 | D113: 2011-01-14 | E113: 2011-01-17 | F113: 49000 | G113: 1.465026 | H113: 0.71579129 | I113: 71786.274 | J113: 51383.98967 | L113: EURCHF | M113: Exit long - flat | N113: 0 | O113: 0
A114: EURCHF | B114: Sold | C114: 128 | D114: 2011-01-14 | E114: 2011-01-17 | F114: 49000 | G114: 1.465077 | H114: 0.72432278 | I114: 71788.773 | J114: 51998.24363 | L114: EURCHF | M114: Enter short | N114: 49000 | O114: 51998.24363
A115: EURCHF | B115: Sold | C115: 129 | D115: 2011-01-14 | E115: 2011-01-17 | F115: 49000 | G115: 1.465128 | H115: 0.72432278 | I115: 71791.272 | J115: 52000.05371 | L115: EURCHF | M115: Enter short | N115: 98000 | O115: 103998.2973
A116: EURCHF | B116: Bought | C116: 130 | D116: 2011-01-14 | E116: 2011-01-17 | F116: 49000 | G116: 1.464873 | H116: 0.71404956 | I116: =G116*F116 -> 71778.777 | J116: =H116*I116 -> 51253.60413 | L116: EURCHF | M116: Exit short | N116: 49000 | O116: 52744.69321
A117: EURCHF | B117: Bought | C117: 131 | D117: 2011-01-14 | E117: 2011-01-17 | F117: 49000 | G117: 1.464822 | H117: 0.71469434 | I117: 71776.278 | J117: 51298.09963 | L117: EURCHF | M117: Exit short - flat | N117: 0 | O117: 0
A118: EURCHF | B118: Bought | C118: 132 | D118: 2011-01-14 | E118: 2011-01-17 | F118: 24500 | G118: 1.464771 | H118: 0.72233797 | I118: 35886.8895 | J118: 25922.46291 | L118: EURCHF | M118: Enter long | N118: 24500 | O118: 25922.46291
A119: EURCHF | B119: Sold | C119: 133 | D119: 2011-01-14 | E119: 2011-01-17 | F119: 24500 | G119: 1.465026 | H119: 0.71462533 | I119: 35893.137 | J119: 25650.14487 | L119: EURCHF | M119: Exit long - flat | N119: 0 | O119: 0
A120: EURCHF | B120: Bought | C120: 134 | D120: 2011-01-14 | E120: 2011-01-17 | F120: 24500 | G120: 1.464771 | H120: 0.72233797 | I120: 35886.8895 | J120: 25922.46291 | L120: EURCHF | M120: Enter long | N120: 24500 | O120: 25922.46291
A121: EURCHF | B121: Sold | C121: 135 | D121: 2011-01-14 | E121: 2011-01-17 | F121: 24500 | G121: 1.465128 | H121: 0.71547817 | I121: 35895.636 | J121: 25682.54396 | L121: EURCHF | M121: Exit long - flat | N121: 0 | O121: 0
A122: EURCHF | B122: Bought | C122: 136 | D122: 2011-01-14 | E122: 2011-01-17 | F122: 12250 | G122: 1.46472 | H122: 0.72233797 | I122: 17942.82 | J122: 12960.78017 | L122: EURCHF | M122: Enter long | N122: 12250 | O122: 12960.78017
A123: EURCHF | B123: Bought | C123: 137 | D123: 2011-01-14 | E123: 2011-01-17 | F123: 12250 | G123: 1.46472 | H123: 0.72233797 | I123: 17942.82 | J123: 12960.78017 | L123: EURCHF | M123: Enter long | N123: 24500 | O123: 25921.56035
A124: EURCHF | B124: Sold | C124: 138 | D124: 2011-01-14 | E124: 2011-01-17 | F124: 12250 | G124: 1.464414 | H124: 0.72211961 | I124: 17939.0715 | J124: 12954.15532 | L124: EURCHF | M124: Exit long | N124: 12250 | O124: 12967.40503
A125: EURCHF | B125: Sold | C125: 139 | D125: 2011-01-14 | E125: 2011-01-17 | F125: 12250 | G125: 1.46472 | H125: 0.71307724 | I125: 17942.82 | J125: 12794.61656 | L125: EURCHF | M125: Exit long - flat | N125: 0 | O125: 0
A126: EURCHF | B126: Bought | C126: 140 | D126: 2011-01-14 | E126: 2011-01-17 | F126: 12250 | G126: 1.462374 | H126: 0.71307724 | I126: 17914.0815 | J126: 12774.12379 | L126: EURCHF | M126: Enter long | N126: 12250 | O126: 12774.12379
A127: EURCHF | B127: Sold | C127: 141 | D127: 2011-01-14 | E127: 2011-01-17 | F127: 12250 | G127: 1.462629 | H127: 0.7135943 | I127: 17917.20525 | J127: 12785.61554 | L127: EURCHF | M127: Exit long - flat | N127: 0 | O127: 0
A128: EURCHF | B128: Bought | C128: 142 | D128: 2011-01-14 | E128: 2011-01-17 | F128: 12250 | G128: 1.462374 | H128: 0.71307724 | I128: 17914.0815 | J128: 12774.12379 | L128: EURCHF | M128: Enter long | N128: 12250 | O128: 12774.12379
A129: EURCHF | B129: Bought | C129: 143 | D129: 2011-01-14 | E129: 2011-01-17 | F129: 12250 | G129: 1.462272 | H129: 0.71307724 | I129: 17912.832 | J129: 12773.2328 | L129: EURCHF | M129: Enter long | N129: 24500 | O129: 25547.3566
A130: EURCHF | B130: Sold | C130: 144 | D130: 2011-01-14 | E130: 2011-01-17 | F130: 12250 | G130: 1.462578 | H130: 0.72016261 | I130: 17916.5805 | J130: 12902.85138 | L130: EURCHF | M130: Exit long | N130: 12250 | O130: 12644.50522
A131: EURCHF | B131: Sold | C131: 145 | D131: 2011-01-14 | E131: 2011-01-17 | F131: 12250 | G131: 1.462578 | H131: 0.71092351 | I131: 17916.5805 | J131: 12737.3183 | L131: EURCHF | M131: Exit long - flat | N131: 0 | O131: 0
A132: EURCHF | B132: Sold | C132: 146 | D132: 2011-01-14 | E132: 2011-01-17 | F132: 12250 | G132: 1.46268 | H132: 0.71307724 | I132: 17917.83 | J132: 12776.79676 | L132: EURCHF | M132: Enter short | N132: 12250 | O132: 12776.79676
A133: EURCHF | B133: Bought | C133: 147 | D133: 2011-01-14 | E133: 2011-01-17 | F133: 12250 | G133: 1.462476 | H133: 0.72016261 | I133: 17915.331 | J133: 12901.95153 | L133: EURCHF | M133: Exit short - flat | N133: 0 | O133: 0
A134: EURCHF | B134: Sold | C134: 148 | D134: 2011-01-14 | E134: 2011-01-17 | F134: 24500 | G134: 1.46268 | H134: 0.71307724 | I134: 35835.66 | J134: 25553.59353 | L134: EURCHF | M134: Enter short | N134: 24500 | O134: 25553.59353
A135: EURCHF | B135: Bought | C135: 149 | D135: 2011-01-14 | E135: 2011-01-17 | F135: 24500 | G135: 1.462476 | H135: 0.71469434 | I135: 35830.662 | J135: 25607.97133 | L135: EURCHF | M135: Exit short - flat | N135: 0 | O135: 0
A136: EURCHF | B136: Sold | C136: 150 | D136: 2011-01-14 | E136: 2011-01-17 | F136: 49000 | G136: 1.46268 | H136: 0.72432278 | I136: 71671.32 | J136: 51913.16975 | L136: EURCHF | M136: Enter short | N136: 49000 | O136: 51913.16975
A137: EURGBP | B137: Sold | C137: 151 | D137: 2011-01-14 | E137: 2011-01-17 | F137: 12250 | G137: 0.893622 | H137: 1.15875 | I137: 10946.8695 | J137: 12684.68503 | L137: EURGBP | M137: Enter short | N137: 12250 | O137: 12684.68503
A138: EURGBP | B138: Bought | C138: 152 | D138: 2011-01-14 | E138: 2011-01-17 | F138: 12250 | G138: 0.893316 | H138: 1.17071036 | I138: 10943.121 | J138: 12811.22513 | L138: EURGBP | M138: Exit short - flat | N138: 0 | O138: 0
A139: EURGBP | B139: Sold | C139: 153 | D139: 2011-01-14 | E139: 2011-01-17 | F139: 24500 | G139: 0.893571 | H139: 1.18020799 | I139: 21892.4895 | J139: 25837.69103 | L139: EURGBP | M139: Enter short | N139: 24500 | O139: 25837.69103
A140: EURCHF | B140: Sold | C140: 154 | D140: 2011-01-14 | E140: 2011-01-17 | F140: 49000 | G140: 1.462833 | H140: 0.72628184 | I140: 71678.817 | J140: 52059.0231 | L140: EURCHF | M140: Enter short | N140: 98000 | O140: 103972.1928
A141: EURCHF | B141: Bought | C141: 155 | D141: 2011-01-14 | E141: 2011-01-17 | F141: 49000 | G141: 1.462578 | H141: 0.72506541 | I141: 71666.322 | J141: 51962.77114 | L141: EURCHF | M141: Exit short | N141: 49000 | O141: 52009.4217
A142: EURCHF | B142: Bought | C142: 156 | D142: 2011-01-14 | E142: 2011-01-17 | F142: 49000 | G142: 1.462578 | H142: 0.71579129 | I142: 71666.322 | J142: 51298.12907 | L142: EURCHF | M142: Exit short - flat | N142: 0 | O142: 0
A143: EURGBP | B143: Bought | C143: 157 | D143: 2011-01-14 | E143: 2011-01-17 | F143: 24500 | G143: 0.8951112 | H143: 1.17809752 | I143: 21930.2244 | J143: 25835.94298 | L143: EURGBP | M143: Exit short - flat | N143: 0 | O143: 0
A144: EURCHF | B144: Sold | C144: 158 | D144: 2011-01-14 | E144: 2011-01-17 | F144: 12250 | G144: 1.4623842 | H144: 0.71307724 | I144: 17914.20645 | J144: 12774.21289 | L144: EURCHF | M144: Enter short | N144: 12250 | O144: 12774.21289
A145: EURCHF | B145: Bought | C145: 159 | D145: 2011-01-14 | E145: 2011-01-17 | F145: 12250 | G145: 1.462221 | H145: 0.72378409 | I145: 17912.20725 | J145: 12964.57062 | L145: EURCHF | M145: Exit short - flat | N145: 0 | O145: 0
A146: EURCHF | B146: Sold | C146: 160 | D146: 2011-01-14 | E146: 2011-01-17 | F146: 49000 | G146: 1.462629 | H146: 0.72628184 | I146: 71668.821 | J146: 52051.76319 | L146: EURCHF | M146: Enter short | N146: 49000 | O146: 52051.76319
A147: EURCHF | B147: Bought | C147: 161 | D147: 2011-01-14 | E147: 2011-01-17 | F147: 49000 | G147: 1.462374 | H147: 0.71411136 | I147: 71656.326 | J147: 51170.59641 | L147: EURCHF | M147: Exit short - flat | N147: 0 | O147: 0
A148: EURCHF | B148: Sold | C148: 162 | D148: 2011-01-14 | E148: 2011-01-17 | F148: 49000 | G148: 1.462578 | H148: 0.72628184 | I148: 71666.322 | J148: 52049.94821 | L148: EURCHF | M148: Enter short | N148: 49000 | O148: 52049.94821
A149: EURCHF | B149: Sold | C149: 163 | D149: 2011-01-14 | E149: 2011-01-17 | F149: 49000 | G149: 1.462629 | H149: 0.72628184 | I149: 71668.821 | J149: 52051.76319 | L149: EURCHF | M149: Enter short | N149: 98000 | O149: 104101.7114
A150: EURCHF | B150: Bought | C150: 164 | D150: 2011-01-14 | E150: 2011-01-17 | F150: 49000 | G150: 1.462476 | H150: 0.71469434 | I150: 71661.324 | J150: 51215.94266 | L150: EURCHF | M150: Exit short | N150: 49000 | O150: 52885.76873
A151: EURCHF | B151: Bought | C151: 165 | D151: 2011-01-14 | E151: 2011-01-17 | F151: 49000 | G151: 1.462425 | H151: 0.71259211 | I151: 71658.825 | J151: 51063.51331 | L151: EURCHF | M151: Exit short - flat | N151: 0 | O151: 0
A152: EURCHF | B152: Sold | C152: 166 | D152: 2011-01-14 | E152: 2011-01-17 | F152: 98000 | G152: 1.462629 | H152: 0.72067143 | I152: 143337.642 | J152: 103299.3434 | L152: EURCHF | M152: Enter short | N152: 98000 | O152: 103299.3434
A153: EURCHF | B153: Bought | C153: 167 | D153: 2011-01-14 | E153: 2011-01-17 | F153: 98000 | G153: 1.462476 | H153: 0.71329251 | I153: 143322.648 | J153: 102230.9713 | L153: EURCHF | M153: Exit short - flat | N153: 0 | O153: 0
A154: EURGBP | B154: Bought | C154: 168 | D154: 2011-01-14 | E154: 2011-01-17 | F154: 9800 | G154: 0.892092 | H154: 1.19263185 | I154: 8742.5016 | J154: 10426.58586 | L154: EURGBP | M154: Enter long | N154: 9800 | O154: 10426.58586
A155: EURGBP | B155: Sold | C155: 169 | D155: 2011-01-14 | E155: 2011-01-17 | F155: 9800 | G155: 0.892296 | H155: 1.16663259 | I155: 8744.5008 | J155: 10201.61962 | L155: EURGBP | M155: Exit long - flat | N155: 0 | O155: 0
A156: EURCHF | B156: Bought | C156: 170 | D156: 2011-01-14 | E156: 2011-01-17 | F156: 12250 | G156: 1.464414 | H156: 0.71307724 | I156: 17939.0715 | J156: 12791.94359 | L156: EURCHF | M156: Enter long | N156: 12250 | O156: 12791.94359
A157: EURGBP | B157: Bought | C157: 171 | D157: 2011-01-14 | E157: 2011-01-17 | F157: 14700 | G157: 0.891888 | H157: 1.17206893 | I157: 13110.7536 | J157: 15366.70694 | L157: EURGBP | M157: Enter long | N157: 14700 | O157: 15366.70694
A158: EURCHF | B158: Sold | C158: 172 | D158: 2011-01-14 | E158: 2011-01-17 | F158: 12250 | G158: 1.464618 | H158: 0.72016261 | I158: 17941.5705 | J158: 12920.84824 | L158: EURCHF | M158: Exit long - flat | N158: 0 | O158: 0
A159: USDCHF | B159: Sold | C159: 173 | D159: 2011-01-14 | E159: 2011-01-17 | F159: 4900 | G159: 1.0898598 | H159: 0.708125 | I159: 5340.31302 | J159: 3781.609157 | L159: USDCHF | M159: Enter short | N159: 4900 | O159: 3781.609157
A160: USDCHF | B160: Bought | C160: 174 | D160: 2011-01-14 | E160: 2011-01-17 | F160: 4900 | G160: 1.089564 | H160: 0.71084523 | I160: 5338.8636 | J160: 3795.105724 | L160: USDCHF | M160: Exit short - flat | N160: 0 | O160: 0
A161: EURCHF | B161: Bought | C161: 175 | D161: 2011-01-14 | E161: 2011-01-17 | F161: 24500 | G161: 1.464414 | H161: 0.71708909 | I161: 35878.143 | J161: 25727.82491 | L161: EURCHF | M161: Enter long | N161: 24500 | O161: 25727.82491
A162: USDCHF | B162: Sold | C162: 176 | D162: 2011-01-14 | E162: 2011-01-17 | F162: 4900 | G162: 1.089972 | H162: 0.708125 | I162: 5340.8628 | J162: 3781.99847 | L162: USDCHF | M162: Enter short | N162: 4900 | O162: 3781.99847
A163: USDCHF | B163: Bought | C163: 177 | D163: 2011-01-14 | E163: 2011-01-17 | F163: 4900 | G163: 1.089564 | H163: 0.71469434 | I163: 5338.8636 | J163: 3815.655597 | L163: USDCHF | M163: Exit short - flat | N163: 0 | O163: 0
A164: USDCHF | B164: Sold | C164: 178 | D164: 2011-01-14 | E164: 2011-01-17 | F164: 4900 | G164: 1.089972 | H164: 0.708125 | I164: 5340.8628 | J164: 3781.99847 | L164: USDCHF | M164: Enter short | N164: 4900 | O164: 3781.99847
A165: USDCHF | B165: Bought | C165: 179 | D165: 2011-01-14 | E165: 2011-01-17 | F165: 4900 | G165: 1.089564 | H165: 0.71469434 | I165: 5338.8636 | J165: 3815.655597 | L165: USDCHF | M165: Exit short - flat | N165: 0 | O165: 0
A166: USDCHF | B166: Sold | C166: 180 | D166: 2011-01-14 | E166: 2011-01-17 | F166: 4900 | G166: 1.089972 | H166: 0.708125 | I166: 5340.8628 | J166: 3781.99847 | L166: USDCHF | M166: Enter short | N166: 4900 | O166: 3781.99847
A167: EURGBP | B167: Sold | C167: 181 | D167: 2011-01-14 | E167: 2011-01-17 | F167: 14700 | G167: 0.892092 | H167: 1.17013562 | I167: 13113.7524 | J167: 15344.8688 | L167: EURGBP | M167: Exit long - flat | N167: 0 | O167: 0
A168: EURCHF | B168: Sold | C168: 182 | D168: 2011-01-14 | E168: 2011-01-17 | F168: 24500 | G168: 1.464618 | H168: 0.71469434 | I168: 35883.141 | J168: 25645.47777 | L168: EURCHF | M168: Exit long - flat | N168: 0 | O168: 0
A169: EURCHF | B169: Sold | C169: 183 | D169: 2011-01-14 | E169: 2011-01-17 | F169: 49000 | G169: 1.46472 | H169: 0.72821618 | I169: 71771.28 | J169: 52265.00736 | L169: EURCHF | M169: Enter short | N169: 49000 | O169: 52265.00736
A170: USDCHF | B170: Bought | C170: 184 | D170: 2011-01-14 | E170: 2011-01-17 | F170: 4900 | G170: 1.089666 | H170: 0.72253779 | I170: 5339.3634 | J170: 3857.891831 | L170: USDCHF | M170: Exit short - flat | N170: 0 | O170: 0
A171: EURCHF | B171: Bought | C171: 185 | D171: 2011-01-14 | E171: 2011-01-17 | F171: 49000 | G171: 1.464465 | H171: 0.71527732 | I171: 71758.785 | J171: 51327.43142 | L171: EURCHF | M171: Exit short - flat | N171: 0 | O171: 0
A172: EURGBP | B172: Bought | C172: 186 | D172: 2011-01-14 | E172: 2011-01-17 | F172: 12250 | G172: 0.891837 | H172: 1.20166701 | I172: 10925.00325 | J172: 13128.21599 | L172: EURGBP | M172: Enter long | N172: 12250 | O172: 13128.21599
A173: EURGBP | B173: Sold | C173: 187 | D173: 2011-01-14 | E173: 2011-01-17 | F173: 12250 | G173: 0.891684 | H173: 1.19978005 | I173: 10923.129 | J173: 13105.35226 | L173: EURGBP | M173: Exit long - flat | N173: 0 | O173: 0
A174: EURGBP | B174: Sold | C174: 188 | D174: 2011-01-14 | E174: 2011-01-17 | F174: 4900 | G174: 0.8873898 | H174: 1.236 | I174: 4348.21002 | J174: 5374.387585 | L174: EURGBP | M174: Enter short | N174: 4900 | O174: 5374.387585
A175: EURGBP | B175: Bought | C175: 189 | D175: 2011-01-14 | E175: 2011-01-17 | F175: 4900 | G175: 0.886992 | H175: 1.16947951 | I175: 4346.2608 | J175: 5082.862951 | L175: EURGBP | M175: Exit short - flat | N175: 0 | O175: 0
A176: EURGBP | B176: Bought | C176: 190 | D176: 2011-01-14 | E176: 2011-01-17 | F176: 4900 | G176: 0.886482 | H176: 1.236 | I176: 4343.7618 | J176: 5368.889585 | L176: EURGBP | M176: Enter long | N176: 4900 | O176: 5368.889585
A177: EURGBP | B177: Sold | C177: 191 | D177: 2011-01-14 | E177: 2011-01-17 | F177: 4900 | G177: 0.887298 | H177: 1.18239777 | I177: 4347.7602 | J177: 5140.781965 | L177: EURGBP | M177: Exit long - flat | N177: 0 | O177: 0
A178: EURCHF | B178: Sold | C178: 192 | D178: 2011-01-14 | E178: 2011-01-17 | F178: 12250 | G178: 1.462221 | H178: 0.71307724 | I178: 17912.20725 | J178: 12772.78731 | L178: EURCHF | M178: Enter short | N178: 12250 | O178: 12772.78731
A179: USDCHF | B179: Sold | C179: 193 | D179: 2011-01-14 | E179: 2011-01-17 | F179: 14700 | G179: 1.091604 | H179: 0.72319184 | I179: 16046.5788 | J179: 11604.75485 | L179: USDCHF | M179: Enter short | N179: 14700 | O179: 11604.75485
A180: EURCHF | B180: Bought | C180: 194 | D180: 2011-01-14 | E180: 2011-01-17 | F180: 12250 | G180: 1.4619864 | H180: 0.71588605 | I180: =G180*F180 -> 17909.3334 | J180: =H180*I180 -> 12821.04195 | L180: EURCHF | M180: Exit short - flat | N180: 0 | O180: 0
A181: EURGBP | B181: Bought | C181: 195 | D181: 2011-01-14 | E181: 2011-01-17 | F181: 4900 | G181: 0.886584 | H181: 1.236 | I181: 4344.2616 | J181: 5369.507338 | L181: EURGBP | M181: Enter long | N181: 4900 | O181: 5369.507338
A182: GBPUSD | B182: Sold | C182: 196 | D182: 2011-01-14 | E182: 2011-01-17 | F182: 4900 | G182: 1.572126 | H182: 0.75533299 | I182: 7703.4174 | J182: 5818.645298 | L182: GBPUSD | M182: Enter short | N182: 4900 | O182: 5818.645298
A183: USDCHF | B183: Bought | C183: 197 | D183: 2011-01-14 | E183: 2011-01-17 | F183: 14700 | G183: 1.0914 | H183: 0.71469434 | I183: 16043.58 | J183: 11466.25582 | L183: USDCHF | M183: Exit short - flat | N183: 0 | O183: 0
A184: EURCHF | B184: Bought | C184: 198 | D184: 2011-01-14 | E184: 2011-01-17 | F184: 49000 | G184: 1.461762 | H184: 0.72821618 | I184: 71626.338 | J184: 52159.45825 | L184: EURCHF | M184: Enter long | N184: 49000 | O184: 52159.45825
A185: EURCHF | B185: Bought | C185: 199 | D185: 2011-01-14 | E185: 2011-01-17 | F185: 49000 | G185: 1.461762 | H185: 0.72821618 | I185: 71626.338 | J185: 52159.45825 | L185: EURCHF | M185: Enter long | N185: 98000 | O185: 104318.9165
A186: USDCHF | B186: Sold | C186: 200 | D186: 2011-01-14 | E186: 2011-01-17 | F186: 12250 | G186: 1.091859 | H186: 0.71307724 | I186: 13375.27275 | J186: 9537.602577 | L186: USDCHF | M186: Enter short | N186: 12250 | O186: 9537.602577
A187: GBPUSD | B187: Bought | C187: 201 | D187: 2011-01-14 | E187: 2011-01-17 | F187: 4900 | G187: 1.5716976 | H187: 0.77567858 | I187: 7701.31824 | J187: 5973.747597 | L187: GBPUSD | M187: Exit short - flat | N187: 0 | O187: 0
A188: USDCHF | B188: Bought | C188: 202 | D188: 2011-01-14 | E188: 2011-01-17 | F188: 12250 | G188: 1.091655 | H188: 0.72016261 | I188: 13372.77375 | J188: 9630.571647 | L188: USDCHF | M188: Exit short - flat | N188: 0 | O188: 0
A189: EURGBP | B189: Sold | C189: 203 | D189: 2011-01-14 | E189: 2011-01-17 | F189: 4900 | G189: 0.886074 | H189: 1.19785189 | I189: 4341.7626 | J189: 5200.788536 | L189: EURGBP | M189: Exit long - flat | N189: 0 | O189: 0
A190: EURCHF | B190: Sold | C190: 204 | D190: 2011-01-14 | E190: 2011-01-17 | F190: 49000 | G190: 1.461456 | H190: 0.72267169 | I190: 71611.344 | J190: 51751.49099 | L190: EURCHF | M190: Exit long | N190: 49000 | O190: 52567.4255
A191: EURCHF | B191: Sold | C191: 205 | D191: 2011-01-14 | E191: 2011-01-17 | F191: 49000 | G191: 1.4614356 | H191: 0.72257693 | I191: 71610.3444 | J191: 51743.98281 | L191: EURCHF | M191: Exit long - flat | N191: 0 | O191: 0
A192: EURGBP | B192: Sold | C192: 206 | D192: 2011-01-14 | E192: 2011-01-17 | F192: 4900 | G192: 0.883932 | H192: 1.236 | I192: 4331.2668 | J192: 5353.445765 | L192: EURGBP | M192: Enter short | N192: 4900 | O192: 5353.445765
A193: EURGBP | B193: Bought | C193: 207 | D193: 2011-01-14 | E193: 2011-01-17 | F193: 4900 | G193: 0.883014 | H193: 1.18846138 | I193: 4326.7686 | J193: 5142.197381 | L193: EURGBP | M193: Exit short - flat | N193: 0 | O193: 0
A194: GBPUSD | B194: Sold | C194: 208 | D194: 2011-01-14 | E194: 2011-01-17 | F194: 4900 | G194: 1.569474 | H194: 0.75533299 | I194: 7690.4226 | J194: 5808.829897 | L194: GBPUSD | M194: Enter short | N194: 4900 | O194: 5808.829897
A195: GBPUSD | B195: Bought | C195: 209 | D195: 2011-01-14 | E195: 2011-01-17 | F195: 4900 | G195: 1.569168 | H195: 0.77945971 | I195: 7688.9232 | J195: 5993.205848 | L195: GBPUSD | M195: Exit short - flat | N195: 0 | O195: 0
A196: USDCHF | B196: Sold | C196: 210 | D196: 2011-01-14 | E196: 2011-01-17 | F196: 12250 | G196: 1.0983054 | H196: 0.721 | I196: 13454.24115 | J196: 9700.507869 | L196: USDCHF | M196: Enter short | N196: 12250 | O196: 9700.507869
A197: EURCHF | B197: Bought | C197: 211 | D197: 2011-01-14 | E197: 2011-01-17 | F197: 12250 | G197: 1.461762 | H197: 0.721 | I197: 17906.5845 | J197: 12910.64742 | L197: EURCHF | M197: Enter long | N197: 12250 | O197: 12910.64742
A198: EURCHF | B198: Bought | C198: 212 | D198: 2011-01-14 | E198: 2011-01-17 | F198: 12250 | G198: 1.46166 | H198: 0.721 | I198: 17905.335 | J198: 12909.74654 | L198: EURCHF | M198: Enter long | N198: 24500 | O198: 25820.39396
A199: GBPUSD | B199: Bought | C199: 213 | D199: 2011-01-14 | E199: 2011-01-17 | F199: 4900 | G199: 1.567434 | H199: 0.75533299 | I199: 7680.4266 | J199: 5801.279588 | L199: GBPUSD | M199: Enter long | N199: 4900 | O199: 5801.279588
A200: GBPUSD | B200: Sold | C200: 214 | D200: 2011-01-14 | E200: 2011-01-17 | F200: 4900 | G200: 1.56825 | H200: 0.76724494 | I200: 7684.425 | J200: 5895.836198 | L200: GBPUSD | M200: Exit long - flat | N200: 0 | O200: 0
... 67 more rows
